bitfinex/quotes_SOLUSD_20241005
["timestamp","ask_amount","ask_price","bid_price","bid_amount"]
[1728103819889,18.1748377,142.8,142.72,37.5162]
[1728103820090,7.0042,142.77,142.73,7.0061]
[1728103821298,8.75513546,142.78,142.73,7.0061]
[1728103822284,1.75133546,142.78,142.73,7.0061]
[1728103822488,7.0044,142.77,142.73,7.0061]
[1728103822701,1.75136929,142.76,142.73,7.0061]
[1728103822911,1.75136929,142.76,142.72,24.5229]
[1728103823402,7.0047,142.76,142.72,24.5229]
[1728103824298,7.0047,142.76,142.72,17.5162]
[1728103824518,16.4239,142.75,142.72,17.5162]
[1728103826289,6.1373,142.74,142.72,17.5162]
[1728103827303,7.8889619,142.74,142.72,17.5162]
[1728103831891,7.8889619,142.74,142.68,20.0]
[1728103831892,7.0062,142.73,142.68,20.0]
[1728103832094,1.75172138,142.72,142.67,25.45474808]
[1728103832308,1.75182508,142.71,142.67,24.5309]
[1728103832794,1.75182508,142.71,142.67,17.5222]
[1728103832998,16.4239,142.7,142.67,17.5222]
[1728103834502,16.4239,142.7,142.67,24.5311]
[1728103835413,16.4239,142.7,142.67,17.5222]
[1728103835628,16.4239,142.7,142.68,7.0086]
[1728103840223,16.4239,142.7,142.67,24.5312]
[1728103846825,16.4239,142.7,142.67,17.5222]
[1728103851435,23.4319,142.7,142.65,7.01]
[1728103851637,16.4239,142.7,142.66,7.0095]
[1728103852938,16.4239,142.7,142.64,7.93254808]
[1728103853134,16.4239,142.7,142.67,7.0091]
[1728103859534,16.4239,142.7,142.69,7.0081]
[1728103860117,16.4239,142.7,142.65,17.5248]
[1728103860317,16.4239,142.7,142.67,7.0091]
[1728103863648,18.17603157,142.7,142.67,7.0091]
[1728103864047,18.17603157,142.7,142.66,7.0095]
[1728103865436,16.4239,142.7,142.66,7.0095]
[1728103865834,16.4239,142.7,142.68,17.5211]
[1728103866046,20.0,142.73,142.68,17.5211]
[1728103866242,21.2816,142.74,142.7,17.5186]
[1728103866747,21.2816,142.74,142.71,7.0068]
[1728103867555,21.2816,142.74,142.72,7.0067]
[1728103869361,6.2392,142.77,142.73,7.0058]
[1728103869652,1.75144217,142.76,142.73,7.0058]
[1728103870425,1.75144217,142.76,142.73,37.0058]
[1728103875149,21.75144217,142.76,142.73,30.0]
[1728103875544,23.066,142.74,142.73,30.0]
[1728103875857,7.0062,142.73,142.69,17.5198]
[1728103876032,1.75196002,142.72,142.69,17.5198]
[1728103878350,7.0062,142.73,142.69,17.5198]
[1728103878546,1.75198846,142.72,142.69,17.5198]
[1728103878959,7.0062,142.73,142.69,24.5278]
[1728103879156,7.0062,142.73,142.7,30.0]
[1728103879742,29.6312,142.74,142.7,30.0]
[1728103880047,1.75193062,142.73,142.7,30.0]
[1728103880356,29.6312,142.74,142.7,30.0]
[1728103881157,1.75193013,142.73,142.7,30.0]
[1728103881658,29.6312,142.74,142.7,30.0]
[1728103882360,22.6254,142.74,142.7,37.0074]
[1728103882537,1.75177551,142.73,142.7,37.0074]
[1728103883359,22.6254,142.74,142.7,37.0074]
[1728103883563,1.75177644,142.73,142.7,37.0074]
[1728103884061,22.6254,142.74,142.7,37.0074]
[1728103887663,22.6254,142.74,142.72,7.0065]
[1728103888557,22.6254,142.74,142.71,24.5246]
[1728103889754,1.7516434,142.73,142.71,17.5175]
[1728103890149,24.37708013,142.74,142.71,17.5175]
[1728103890469,31.38298013,142.74,142.7,30.0]
[1728103890769,7.0063,142.73,142.7,30.0]
[1728103890969,7.0072,142.71,142.7,30.0]
[1728103891162,8.75872443,142.72,142.67,7.0091]
[1728103891467,8.75872443,142.72,142.68,30.0]
[1728103891841,7.0068,142.72,142.68,30.0]
[1728103892765,7.0068,142.72,142.67,7.0091]
[1728103893145,29.6315,142.74,142.68,7.0085]
[1728103893344,29.6315,142.74,142.67,17.5224]
[1728103893670,29.6315,142.74,142.69,7.008]
[1728103895667,29.6315,142.74,142.68,37.93254808]
[1728103895846,29.6315,142.74,142.71,7.0071]
[1728103895847,22.6254,142.74,142.71,7.0071]
[1728103897761,24.37707141,142.74,142.7,7.93254808]
[1728103897944,22.6254,142.74,142.71,7.007]
[1728103899361,22.6254,142.74,142.71,37.007]
[1728103903670,22.6254,142.74,142.71,7.007]
[1728103906780,22.6254,142.74,142.71,37.007]
[1728103907878,22.6254,142.74,142.71,7.007]
[1728103911972,22.6254,142.74,142.73,7.0062]
[1728103912175,22.6254,142.74,142.71,17.5171]
[1728103913072,22.6254,142.74,142.71,24.5242]
[1728103923688,22.6254,142.74,142.71,17.5171]
[1728103924866,24.37709703,142.74,142.68,17.5211]
[1728103925069,7.0074,142.71,142.66,7.0092]
[1728103925369,8.75996303,142.7,142.67,30.0]
[1728103925680,7.0078,142.7,142.67,30.0]
[1728103926190,7.0073,142.71,142.66,7.0092]
[1728103926501,1.75216569,142.7,142.66,7.0092]
[1728103929595,1.75216569,142.7,142.65,24.5348]
[1728103929596,23.0339,142.69,142.65,24.5348]
[1728103929807,1.75237876,142.68,142.65,17.5248]
[1728103929978,30.0422,142.69,142.65,17.5248]
[1728103930988,30.0422,142.69,142.65,24.5348]
[1728103931190,1.75235567,142.68,142.65,24.5348]
[1728103931993,8.76105567,142.68,142.62,25.46094808]
[1728103932294,8.76105567,142.68,142.63,30.0]
[1728103932982,8.76105567,142.68,142.62,25.46094808]
[1728103933184,8.76105567,142.68,142.63,7.011]
[1728103933385,7.0092,142.67,142.63,7.011]
[1728103933697,1.7525598,142.66,142.63,7.011]
[1728103934499,1.75255546,142.67,142.63,7.011]
[1728103936109,27.0087,142.68,142.63,7.011]
[1728103936906,1.75253269,142.67,142.63,7.011]
[1728103937083,27.0087,142.68,142.63,7.011]
[1728103937288,1.75253315,142.67,142.63,7.011]
[1728103946415,8.76173315,142.67,142.63,7.011]
[1728103946910,7.0097,142.66,142.62,24.5399]
[1728103947110,1.75279645,142.65,142.62,17.5284]
[1728103947293,8.15469645,142.65,142.62,17.5284]
[1728103947612,23.85159645,142.65,142.62,17.5284]
[1728103948787,30.86169645,142.65,142.62,17.5284]
[1728103949000,1.75286633,142.64,142.62,17.5284]
[1728103949195,1.75286633,142.64,142.58,7.93254808]
[1728103949418,8.76346633,142.64,142.6,7.0126]
[1728103949706,1.75286633,142.64,142.6,7.0126]
[1728103949884,8.76356633,142.64,142.6,7.0126]
[1728103950084,7.0107,142.64,142.6,7.0126]
[1728103950499,22.0988,142.65,142.6,7.0126]
[1728103950724,29.109,142.65,142.6,7.0126]
[1728103953202,1.75301246,142.64,142.58,17.5331]
[1728103953397,7.0112,142.63,142.59,7.013]
[1728103953594,1.7531375,142.62,142.59,7.013]
[1728103955602,8.7648375,142.62,142.58,17.5331]
[1728103955799,1.75313587,142.64,142.58,17.5331]
[1728103956115,22.0988,142.65,142.64,7.0106]
[1728103956497,21.7773,142.73,142.64,7.0106]
[1728103956808,21.7773,142.72,142.64,7.0106]
[1728103957124,7.0085,142.69,142.64,7.0106]
[1728103958028,27.0087,142.68,142.64,7.0106]
[1728103958999,0.12549,142.7,142.64,7.0106]
[1728103959000,7.0083,142.69,142.64,7.0106]
[1728103959388,20.0,142.68,142.65,7.01]
[1728103960007,1.75251191,142.67,142.63,7.011]
[1728103960322,17.49891191,142.67,142.63,7.011]
[1728103969606,24.50811191,142.67,142.63,7.011]
[1728103972428,17.49891191,142.67,142.62,17.5282]
[1728103972729,7.0097,142.66,142.62,24.5397]
[1728103972909,1.75276107,142.65,142.62,24.5397]
[1728103973932,7.0097,142.66,142.62,24.5397]
[1728103976129,26.6186,142.68,142.64,7.0102]
[1728103977005,26.6186,142.68,142.65,7.01]
[1728103977207,15.4407,142.7,142.65,7.01]
[1728103977409,1.75239932,142.69,142.65,7.01]
[1728103977608,8.76069932,142.69,142.65,7.01]
[1728103978519,7.0083,142.69,142.65,7.01]
[1728103979910,1.75242096,142.68,142.65,7.01]
[1728103980622,7.0083,142.69,142.65,7.01]
[1728103983144,1.75241789,142.68,142.65,7.01]
[1728103983916,7.0083,142.69,142.65,7.01]
[1728103984426,6.0482,142.71,142.67,7.009]
[1728103985246,15.4407,142.74,142.68,7.0085]
[1728103985431,15.4407,142.74,142.69,7.0081]
[1728103985432,7.0062,142.73,142.69,7.0081]
[1728103986332,7.0062,142.73,142.68,24.5297]
[1728103986530,8.75871866,142.72,142.68,17.5212]
[1728103987124,7.0076,142.71,142.66,7.0096]
[1728103987440,1.75218489,142.7,142.66,7.0096]
[1728103988439,7.80038489,142.7,142.65,17.5247]
[1728103988637,21.75246887,142.69,142.65,17.5247]
[1728103989319,20.0,142.69,142.65,17.5247]
[1728103989542,27.0083,142.69,142.65,17.5247]
[1728103991722,1.75240079,142.68,142.65,17.5247]
[1728103992243,27.0083,142.69,142.65,17.5247]
[1728103992450,1.7523967,142.68,142.65,17.5247]
[1728103992654,27.0083,142.69,142.65,17.5247]
[1728103993748,27.0083,142.69,142.65,24.5348]
[1728103993929,1.75239494,142.68,142.65,24.5348]
[1728103995845,6.5345,142.73,142.65,17.5247]
[1728103996053,7.0068,142.72,142.67,7.0091]
[1728103996827,8.7593217,142.71,142.67,7.0091]
[1728103997026,7.0072,142.71,142.67,7.0091]
[1728104010664,1.75211438,142.7,142.67,7.0091]
[1728104012860,8.75991438,142.7,142.66,7.0095]
[1728104013239,1.75211438,142.7,142.66,7.0095]
[1728104013950,7.0073,142.71,142.66,7.0095]
[1728104015372,8.7594108,142.71,142.66,7.0095]
[1728104017766,7.0073,142.71,142.66,7.0095]
[1728104019272,8.7594095,142.71,142.66,7.0095]
[1728104019453,7.008,142.7,142.65,24.5347]
[1728104019771,20.12549,142.72,142.65,24.5347]
[1728104019772,8.76066071,142.69,142.65,24.5347]
[1728104020670,1.75233535,142.68,142.65,24.5347]
[1728104021664,7.0083,142.69,142.65,24.5347]
[1728104022457,1.75239978,142.68,142.65,24.5347]
[1728104022780,7.0083,142.69,142.65,24.5347]
[1728104023445,1.75240397,142.68,142.65,24.5347]
[1728104025270,7.0083,142.69,142.65,24.5347]
[1728104030464,7.0078,142.7,142.65,24.5347]
[1728104039483,1.75231375,142.69,142.65,24.5347]
[1728104041388,7.0078,142.7,142.65,24.5347]
[1728104046801,27.0068,142.72,142.67,7.0088]
[1728104047091,8.75932773,142.71,142.67,7.0088]
[1728104047403,7.0072,142.71,142.67,7.0088]
[1728104049784,1.75214864,142.7,142.67,7.0088]
[1728104051595,7.0072,142.71,142.67,7.0088]
[1728104053493,6.5345,142.73,142.67,17.5222]
[1728104053667,7.0057,142.74,142.7,7.0077]
[1728104054091,7.0057,142.74,142.7,8.39944965]
[1728104054889,7.0057,142.74,142.7,7.0077]
[1728104056185,22.2986,142.77,142.7,7.0077]
[1728104056392,7.0052,142.75,142.71,7.0071]
[1728104056700,8.75679481,142.75,142.71,7.0071]
[1728104057888,27.0047,142.76,142.71,7.0071]
[1728104058176,28.75624348,142.76,142.71,7.0071]
[1728104059499,1.75154348,142.76,142.72,7.0063]
[1728104059687,20.0,142.78,142.72,7.93254808]
[1728104059892,8.75573541,142.77,142.73,17.515]
[1728104060906,8.75573541,142.77,142.73,24.5211]
[1728104061978,7.0044,142.77,142.73,24.5211]
[1728104062704,1.75133367,142.76,142.73,24.5211]
[1728104062915,8.75573403,142.77,142.73,24.5211]
[1728104063113,8.75573403,142.77,142.73,17.515]
[1728104063488,1.7514352,142.76,142.73,17.515]
[1728104065211,7.0054,142.75,142.71,7.0071]
[1728104065382,1.75164711,142.74,142.71,7.0071]
[1728104066209,7.0054,142.75,142.71,7.0071]
[1728104068016,24.027864,142.79,142.71,7.0071]
[1728104068310,7.0048,142.76,142.71,7.0071]
[1728104070411,1.75157059,142.75,142.71,7.0071]
[1728104071411,7.0048,142.76,142.71,7.0071]
[1728104071707,1.75156833,142.75,142.71,7.0071]
[1728104072006,7.0048,142.76,142.71,7.0071]
[1728104072507,1.7515676,142.75,142.71,7.0071]
[1728104072917,7.0048,142.76,142.71,7.0071]
[1728104074923,1.75156718,142.75,142.71,7.0071]
[1728104075711,7.0048,142.76,142.71,7.0071]
[1728104076208,1.75156572,142.75,142.71,7.0071]
[1728104076396,7.0048,142.76,142.71,7.0071]
[1728104076708,1.75156538,142.75,142.71,7.0071]
[1728104076898,7.0048,142.76,142.71,7.0071]
[1728104077793,0.25098,142.79,142.7,25.45124808]
[1728104078005,7.0043,142.77,142.73,7.0061]
[1728104079312,7.0043,142.77,142.72,7.0066]
[1728104079313,1.75143214,142.76,142.72,7.0066]
[1728104080402,7.0048,142.76,142.72,7.0066]
[1728104082010,1.75146889,142.75,142.72,7.0066]
[1728104083516,1.75146889,142.75,142.7,25.45124808]
[1728104083815,1.75146889,142.75,142.71,7.007]
[1728104085320,1.75146889,142.75,142.7,17.5187]
[1728104085615,7.0054,142.75,142.7,24.5262]
[1728104085817,1.75163939,142.74,142.7,24.5262]
[1728104088596,7.0054,142.75,142.7,24.5262]
[1728104103848,1.75159886,142.74,142.7,24.5262]
[1728104105144,1.75159886,142.74,142.67,17.5225]
[1728104105145,7.0073,142.71,142.67,17.5225]
[1728104105456,1.75210037,142.7,142.67,17.5225]
[1728104105754,8.75980037,142.7,142.67,17.5225]
[1728104106547,8.76037808,142.69,142.65,7.01]
[1728104106749,7.0082,142.69,142.65,7.01]
[1728104108036,20.0,142.71,142.66,1.39308438]
[1728104108348,28.4581,142.72,142.67,7.009]
[1728104110335,8.75924352,142.71,142.66,24.5329]
[1728104115266,1.75204352,142.71,142.66,17.5234]
[1728104115430,7.0082,142.69,142.66,17.5234]
[1728104115831,7.0082,142.69,142.64,7.0102]
[1728104116435,1.75229583,142.68,142.64,7.0102]
[1728104116638,7.0087,142.68,142.64,7.0102]
[1728104118647,7.0087,142.68,142.63,17.5271]
[1728104118648,1.7524447,142.67,142.63,24.5378]
[1728104118848,7.0087,142.68,142.63,24.5378]
[1728104124376,1.75249311,142.67,142.63,24.5378]
[1728104127877,7.0087,142.68,142.63,24.5378]
[1728104128051,21.4513,142.72,142.63,17.5271]
[1728104128254,7.0082,142.69,142.65,7.0101]
[1728104128969,7.0082,142.69,142.64,7.0105]
[1728104130476,1.75234305,142.68,142.64,7.0105]
[1728104131178,7.0082,142.69,142.64,7.0105]
[1728104134689,1.75234089,142.68,142.64,7.0105]
[1728104134988,15.31434089,142.68,142.63,24.5381]
[1728104135160,24.47564089,142.68,142.63,24.5381]
[1728104135359,7.0093,142.67,142.63,24.5381]
[1728104135683,8.76182969,142.67,142.63,24.5381]
[1728104136676,7.0093,142.67,142.63,17.5271]
[1728104136877,8.76229575,142.66,142.62,7.0115]
[1728104137069,8.76229575,142.66,142.61,7.012]
[1728104137583,7.0112,142.63,142.59,7.0127]
[1728104137789,22.7233,142.68,142.57,60.53754808]
[1728104137790,7.0107,142.64,142.57,60.53754808]
[1728104137960,20.25098,142.67,142.61,7.012]
[1728104138162,7.0097,142.66,142.61,7.012]
[1728104140274,8.76242031,142.66,142.61,7.012]
[1728104141901,7.0097,142.66,142.61,7.012]
[1728104144888,8.76242811,142.66,142.61,7.012]
[1728104145261,1.75272811,142.66,142.59,25.46464808]
[1728104145468,7.0121,142.61,142.56,24.5506]
[1728104145770,1.75317857,142.6,142.56,17.5362]
[1728104145969,7.0129,142.6,142.56,17.5362]
[1728104146163,1.75340769,142.59,142.56,17.5362]
[1728104146364,7.0129,142.6,142.56,17.5362]
[1728104146761,7.0129,142.6,142.56,24.5507]
[1728104147691,7.0122,142.61,142.56,24.5507]
[1728104147993,1.75335713,142.6,142.56,24.5507]
[1728104156099,7.0132,142.59,142.53,25.47194808]
[1728104156299,0.25098,142.62,142.53,25.47194808]
[1728104156472,1.75344139,142.61,142.53,25.47194808]
[1728104157291,7.0126,142.6,142.56,7.0145]
[1728104157489,1.75342236,142.59,142.56,7.0145]
[1728104158371,13.5384,142.6,142.56,7.0145]
[1728104159096,6.5258,142.6,142.56,7.0145]
[1728104159798,6.5258,142.6,142.56,1.39579665]
[1728104159995,6.5258,142.6,142.57,7.0139]
[1728104178415,8.2791308,142.6,142.57,7.0139]
[1728104178715,6.5258,142.6,142.57,7.0139]
[1728104181499,6.5258,142.6,142.57,17.5346]
[1728104181708,20.0,142.63,142.58,1.39558034]
[1728104181917,27.0112,142.63,142.59,7.0131]
[1728104184809,22.7084,142.64,142.6,1.39496493]
[1728104185003,22.7084,142.64,142.6,7.0125]
[1728104185211,22.7084,142.64,142.6,8.40713601]
[1728104188516,22.7084,142.64,142.6,7.0125]
[1728104188997,29.7191,142.64,142.6,8.4071361]
[1728104192719,42.20818,142.67,142.61,8.40653703]
[1728104193019,20.0,142.66,142.62,7.0115]
[1728104193228,20.0,142.66,142.63,1.39368026]
[1728104194598,20.0,142.66,142.62,7.0115]
[1728104194910,21.75257536,142.66,142.62,7.0115]
[1728104195318,28.76227536,142.66,142.62,7.0115]
[1728104195518,27.0097,142.66,142.62,7.0115]
[1728104198301,21.9572,142.67,142.64,7.0105]
[1728104198510,21.9572,142.67,142.63,25.93157854]
[1728104198718,28.9665,142.67,142.63,24.5377]
[1728104198922,7.0097,142.66,142.62,7.0115]
[1728104202307,28.9665,142.67,142.62,8.40528175]
[1728104204135,28.9665,142.67,142.63,7.0111]
[1728104211740,28.9665,142.67,142.63,8.40488303]
[1728104212144,28.9665,142.67,142.63,7.0111]
[1728104221543,0.12549,142.66,142.52,0.8552743]
[1728104221748,8.8879792,142.66,142.62,17.5285]
[1728104222636,7.0102,142.65,142.61,7.012]
[1728104223414,7.0102,142.65,142.6,7.0125]
[1728104225743,1.7528454,142.64,142.6,7.0125]
[1728104226047,22.3706,142.63,142.59,24.5451]
[1728104226235,29.3818,142.63,142.59,24.5451]
[1728104230351,22.3706,142.63,142.59,24.5451]
[1728104230653,24.1236808,142.63,142.59,24.5451]
[1728104232632,22.3706,142.63,142.59,24.5451]
[1728104242069,29.3819,142.63,142.59,24.5451]
[1728104245258,29.3819,142.63,142.59,17.5321]
[1728104249375,22.3706,142.63,142.59,24.5448]
[1728104251050,22.3706,142.63,142.6,1.39484026]
[1728104252074,22.3706,142.63,142.61,7.012]
[1728104258566,6.4888,142.63,142.61,7.012]
[1728104263189,16.0881,142.66,142.63,7.011]
[1728104264658,17.84068005,142.66,142.63,7.011]
[1728104267988,17.84068005,142.66,142.62,7.0114]
[1728104270186,17.84068005,142.66,142.61,24.5418]
[1728104270187,24.85068005,142.66,142.61,24.5418]
[1728104270377,17.84068005,142.66,142.61,24.5418]
[1728104270585,7.0104,142.65,142.61,24.5418]
[1728104273782,23.0979,142.66,142.61,24.5418]
[1728104279585,16.0881,142.66,142.61,17.5297]
[1728104279789,16.0881,142.66,142.63,7.0111]
[1728104281599,17.84068682,142.66,142.63,7.0111]
[1728104283680,24.85038682,142.66,142.62,7.0116]
[1728104285801,23.0978,142.66,142.62,7.0116]
[1728104286894,16.0881,142.66,142.62,7.0116]
[1728104287989,17.84067582,142.66,142.62,7.0116]
[1728104289208,16.0881,142.66,142.62,7.0116]
[1728104290398,17.84073854,142.66,142.62,7.0116]
[1728104292996,16.0881,142.66,142.62,7.0116]
[1728104296482,17.84074421,142.66,142.62,7.0116]
[1728104301716,16.0881,142.66,142.62,7.0116]
[1728104306216,16.0881,142.66,142.62,8.40547484]
[1728104308396,16.0881,142.66,142.62,7.0116]
[1728104309116,16.0881,142.66,142.63,7.011]
[1728104312498,16.0881,142.66,142.62,7.0114]
[1728104317528,16.0881,142.66,142.62,8.40517218]
[1728104317821,16.0881,142.66,142.64,7.0105]
[1728104318621,15.3019,142.69,142.66,7.0096]
[1728104318822,15.3019,142.69,142.66,8.40215672]
[1728104319127,15.3019,142.69,142.66,7.0096]
[1728104329339,15.3019,142.69,142.65,17.5249]
[1728104329569,8.76138139,142.68,142.63,7.011]
[1728104329841,7.01,142.66,142.62,17.5286]
[1728104330047,1.75269457,142.65,142.62,17.5286]
[1728104330209,7.01,142.66,142.62,17.5286]
[1728104330413,7.01,142.66,142.62,24.5401]
[1728104332740,8.76267373,142.66,142.62,24.5401]
[1728104333341,1.75267373,142.66,142.62,24.5401]
[1728104333542,13.5103,142.67,142.62,24.5401]
[1728104334251,1.75258662,142.66,142.62,24.5401]
[1728104334621,8.76238662,142.66,142.62,24.5401]
[1728104337726,7.0098,142.66,142.62,24.5401]
[1728104337922,8.76247391,142.66,142.62,24.5401]
[1728104339844,7.0098,142.66,142.62,17.5286]
[1728104341944,1.75279257,142.65,142.62,17.5286]
[1728104342144,7.0098,142.66,142.62,17.5286]
[1728104342446,7.0098,142.66,142.61,7.012]
[1728104342447,7.0102,142.65,142.6,7.0125]
[1728104343522,7.0102,142.65,142.6,8.40700512]
[1728104344433,7.0102,142.65,142.6,7.0125]
[1728104346640,8.7630882,142.65,142.6,7.0125]
[1728104347658,7.0102,142.65,142.6,7.0125]
[1728104348648,7.0102,142.65,142.6,8.4069938]
[1728104349935,7.0102,142.65,142.6,7.0125]
[1728104353260,7.0102,142.65,142.6,8.40699245]
[1728104353960,7.0102,142.65,142.6,7.0125]
[1728104359033,7.0102,142.65,142.6,8.40700009]
[1728104359355,7.0102,142.65,142.6,7.0125]
[1728104359858,7.0102,142.65,142.61,7.0119]
[1728104360050,23.5632,142.66,142.61,7.0119]
[1728104365872,23.5632,142.66,142.59,17.5323]
[1728104366165,23.5632,142.66,142.62,7.0116]
[1728104371168,25.31593978,142.66,142.62,7.0116]
[1728104371744,16.5535,142.66,142.62,7.0116]
[1728104371962,16.5535,142.66,142.62,8.40549301]
[1728104372475,16.5535,142.66,142.62,7.0116]
[1728104372691,16.5535,142.66,142.61,17.5298]
[1728104372845,16.5535,142.66,142.63,7.011]
[1728104375383,18.30606927,142.66,142.63,7.011]
[1728104380163,18.30606927,142.66,142.62,7.0115]
[1728104383863,25.31576927,142.66,142.62,7.0115]
[1728104385460,25.31576927,142.66,142.61,24.5418]
[1728104385461,7.0102,142.65,142.61,24.5418]
[1728104385783,6.4581,142.63,142.59,7.0129]
[1728104386882,6.4581,142.63,142.6,7.0125]
[1728104388955,6.4581,142.63,142.61,8.40655076]
[1728104389161,6.4581,142.63,142.61,7.012]
[1728104397402,16.5535,142.66,142.62,8.40589722]
[1728104397584,16.5535,142.66,142.63,7.011]
[1728104397778,16.5535,142.66,142.6,17.5311]
[1728104397977,16.5535,142.66,142.62,7.0115]
[1728104400279,18.30608879,142.66,142.62,7.0115]
[1728104401802,16.5535,142.66,142.62,7.0115]
[1728104404015,16.5535,142.66,142.61,1.39378109]
[1728104404183,16.5535,142.66,142.63,7.0111]
[1728104405376,6.4411,142.67,142.63,8.40465528]
[1728104405580,16.4789,142.69,142.64,18.91904204]
[1728104405791,16.4789,142.69,142.64,17.5255]
[1728104405989,18.23108821,142.69,142.65,7.0101]
[1728104406289,18.23108821,142.69,142.63,7.93254808]
[1728104406290,16.4789,142.69,142.68,7.0086]
[1728104406491,6.348,142.7,142.68,7.0082]
[1728104406788,6.348,142.7,142.66,17.5232]
[1728104407108,6.348,142.7,142.67,7.0091]
[1728104408006,16.4789,142.72,142.68,8.40098913]
[1728104408202,16.4789,142.72,142.69,7.0081]
[1728104408374,13.3538,142.74,142.7,8.39910456]
[1728104408375,6.348,142.74,142.7,8.39910456]
[1728104409294,6.348,142.74,142.71,1.39134739]
[1728104409488,6.348,142.74,142.71,7.0071]
[1728104410211,6.348,142.74,142.7,7.0076]
[1728104410884,8.09961178,142.74,142.7,7.0076]
[1728104411086,15.10531178,142.74,142.69,7.008]
[1728104411395,15.10531178,142.74,142.63,35.0551]
[1728104411396,0.25098,142.73,142.63,35.0551]
[1728104411601,7.0076,142.71,142.66,7.0094]
[1728104411811,1.75204586,142.7,142.66,7.0094]
[1728104412310,7.0076,142.71,142.66,7.0094]
[1728104418309,7.0076,142.71,142.67,1.39245713]
[1728104418685,7.0076,142.71,142.66,7.0094]
[1728104421313,7.0076,142.71,142.67,1.39245489]
[1728104422716,7.0076,142.71,142.66,7.0094]
[1728104423208,22.5242,142.71,142.66,7.0094]
[1728104430002,15.39052686,142.7,142.65,24.5351]
[1728104431708,13.6385,142.7,142.65,24.5351]
[1728104431909,15.39061429,142.7,142.65,24.5351]
[1728104432730,13.6385,142.7,142.65,24.5351]
[1728104436316,13.6385,142.7,142.66,8.40244729]
[1728104436617,15.39059178,142.7,142.66,7.0094]
[1728104437188,13.6385,142.7,142.66,7.0094]
[1728104437620,15.39061631,142.7,142.66,7.0094]
[1728104438419,13.6385,142.7,142.66,7.0094]
[1728104439796,13.6385,142.7,142.66,8.40199917]
[1728104440504,13.6385,142.7,142.66,7.0094]
[1728104441605,13.6385,142.7,142.66,8.40204806]
[1728104442123,13.6385,142.7,142.66,7.0094]
[1728104444630,15.3906659,142.7,142.66,7.0094]
[1728104444826,13.6385,142.7,142.66,7.0094]
[1728104450115,1.75217919,142.69,142.63,7.0106]
[1728104450329,15.7777,142.68,142.62,24.5397]
[1728104450609,7.0107,142.64,142.6,7.0125]
[1728104450813,7.0111,142.63,142.59,17.5326]
[1728104451127,8.76400855,142.63,142.59,24.5456]
[1728104452132,7.0111,142.63,142.59,24.5456]
[1728104452505,15.7777,142.64,142.59,17.5326]
[1728104452706,15.7777,142.64,142.6,7.0125]
[1728104453211,22.7884,142.64,142.6,7.0125]
[1728104455026,1.7529533,142.63,142.6,7.0125]
[1728104455237,22.7884,142.64,142.6,8.40719447]
[1728104455411,22.7884,142.64,142.6,7.0125]
[1728104455612,15.7777,142.64,142.6,7.0125]
[1728104457012,17.53055704,142.64,142.6,7.0125]
[1728104460512,15.7777,142.64,142.6,7.0125]
[1728104463631,17.53055833,142.64,142.6,7.0125]
[1728104465025,7.0119,142.62,142.57,7.0136]
[1728104465219,7.0112,142.63,142.58,7.0135]
[1728104465423,8.28444786,142.62,142.56,17.5362]
[1728104465740,7.0121,142.61,142.56,24.5507]
[1728104466428,13.5431,142.62,142.57,7.0139]
[1728104466725,13.5431,142.62,142.57,8.40925429]
[1728104469231,6.5314,142.62,142.56,25.46874808]
[1728104469432,6.5314,142.62,142.58,8.40848809]
[1728104470130,6.5314,142.62,142.58,7.0132]
[1728104470330,6.5314,142.62,142.59,7.0129]
[1728104470914,6.5314,142.62,142.6,7.0125]